fUST/lending_fUST_20251030
["ID","MTS","AMOUNT","RATE_DAILY","PERIOD"]
[392699428,1761834030695,-500.0,0.00045753,120]
[392699430,1761834030736,-500.0,0.00045753,120]
[392699432,1761834030778,-557.04474329,0.00045753,120]
[392699434,1761834030820,-500.0,0.00045753,120]
[392699436,1761834030861,-500.0,0.00045753,120]
[392699438,1761834030904,-774.89,0.00045753,120]
[392699439,1761834030942,-500.0,0.00045753,120]
[392699441,1761834030984,-1000.0,0.0004596,60]
[392699443,1761834031026,-500.0,0.00046027,120]
[392699445,1761834031067,-500.0,0.00046027,120]
[392699447,1761834031109,-500.0,0.00046027,120]
[392699449,1761834031152,-500.0,0.00046027,120]
[392699451,1761834031194,-500.0,0.00046027,120]
[392699453,1761834031236,-500.0,0.00046027,120]
[392699455,1761834031275,-774.89,0.00046027,120]
[392699457,1761834031312,-461.61,0.00046027,120]
[392699459,1761834031350,-9859.63946066,0.000462,120]
[392699461,1761834031391,-500.0,0.00046301,120]
[392699463,1761834031431,-500.0,0.00046301,120]
[392699465,1761834031471,-500.0,0.00046301,120]
[392699467,1761834031511,-500.0,0.00046301,120]
[392699469,1761834031551,-500.0,0.00046301,120]
[392699471,1761834031592,-500.0,0.00046301,120]
[392699473,1761834031630,-774.89,0.00046301,120]
[392699475,1761834031669,-500.0,0.00046575,120]
[392699477,1761834031706,-500.0,0.00046575,120]
[392699479,1761834031744,-500.0,0.00046575,120]
[392699483,1761834031876,-500.0,0.00046575,120]
[392699485,1761834031918,-250.08324162,0.00046575,120]
[392699487,1761834031959,-500.0,0.00046575,120]
[392699489,1761834031999,-774.89,0.00046575,120]
[392699491,1761834032040,-150.09193181,0.00046647,120]
[392699493,1761834032081,-1000.0,0.00046702,60]
[392699495,1761834032122,-500.0,0.00046849,120]
[392699497,1761834032163,-500.0,0.00046849,120]
[392699499,1761834032205,-500.0,0.00046849,120]
[392699501,1761834032244,-253.21038028,0.00046849,120]
[392699503,1761834032285,-500.0,0.00046849,120]
[392699505,1761834032325,-774.89,0.00046849,120]
[392699506,1761834032365,-500.0,0.00047123,120]
[392699507,1761834032419,-500.0,0.00047123,120]
[392699508,1761834032459,-580.11294727,0.00047123,120]
[392699509,1761834032499,-500.0,0.00047123,120]
[392699511,1761834032538,-774.89,0.00047123,120]
[392699513,1761834032578,-167.833,0.00047317,80]
[392699515,1761834032616,-500.0,0.00047397,120]
[392699517,1761834032654,-500.0,0.00047397,120]
[392699519,1761834032693,-500.0,0.00047397,120]
[392699521,1761834032732,-774.89,0.00047397,120]
[392699523,1761834032771,-1000.0,0.00047443,120]
[392699525,1761834032810,-1888.0,0.00047443,30]
[392699527,1761834032850,-2030.296672,0.00047443,30]
[392699529,1761834032888,-232628.0525,0.00047444,30]
[392699530,1761834032929,-1008.45342169,0.00047444,60]
[392699532,1761834032971,-500.0,0.00047671,120]
[392699534,1761834033013,-500.0,0.00047671,120]
[392699536,1761834033055,-875.06,0.00047671,120]
[392699538,1761834033096,-500.0,0.00047671,120]
[392699540,1761834033141,-413.62376702,0.00047671,120]
[392699542,1761834033185,-629.30406332,0.00047671,120]
[392699544,1761834033226,-774.89,0.00047671,120]
[392699546,1761834033271,-500.0,0.00047945,120]
[392699548,1761834033297,-284.01130091,0.00047945,120]
[392699550,1761834033322,-875.06,0.00047945,120]
[392699551,1761834033348,-500.0,0.00047945,120]
[392699553,1761834033376,-774.89,0.00047945,120]
[392699554,1761834033400,-1000.0,0.00048,120]
[392699556,1761834033426,-200.0,0.00048,120]
[392699558,1761834033451,-4751.983403,0.00048,120]
[392699559,1761834033478,-200.0,0.00048,120]
[392699561,1761834033506,-202.31905984,0.00048219,120]
[392699562,1761834033531,-875.06,0.00048219,120]
[392699564,1761834033556,-500.0,0.00048219,120]
[392699566,1761834033579,-774.89,0.00048219,120]
[392699567,1761834033604,-5010.89477849,0.00048398,120]
[392699569,1761834033630,-875.06,0.00048493,120]
[392699570,1761834033655,-500.0,0.00048493,120]
[392699572,1761834033680,-774.89,0.00048493,120]
[392699574,1761834033705,-200.0,0.00048674,120]
[392699575,1761834033733,-875.06,0.00048767,120]
[392699577,1761834033757,-256.026869,0.00048767,120]
[392699578,1761834033781,-774.89,0.00048767,120]
[392699580,1761834033806,-3073.88011835,0.000488,120]
[392699581,1761834033830,-15558.66065695,0.000488,120]
[392699583,1761834033855,-48672.54,0.000489,30]
[392699584,1761834033881,-200.0,0.00048948,120]
[392699586,1761834033907,-158.0,0.00049,120]
[392699588,1761834033932,-5047.66192377,0.00049,120]
[392699589,1761834033957,-244.91988955,0.00049,120]
[392699591,1761834033984,-12222.81503457,0.00049,120]
[392699592,1761834034010,-1000.0,0.00049,120]
[392699594,1761834034035,-875.06,0.00049041,120]
[392699595,1761834034062,-774.89,0.00049041,120]
[392699597,1761834034088,-875.06,0.00049315,120]
[392699598,1761834034114,-774.89,0.00049315,120]
[392699601,1761834034206,151.0,0.00044971,60]
[392699603,1761834034249,151.0,0.0004559,60]
[392699605,1761834034284,151.0,0.00046208,60]
[392699611,1761834034461,151.0,0.00046826,60]
[392699613,1761834034525,203.12204804,0.00047444,60]
[392699616,1761834034604,-150.0,0.0002589,2]
[392699649,1761834035972,500.0,0.00043835,120]
[392699656,1761834036215,188.74661187,0.00044109,120]
[392699662,1761834036431,500.0,0.00045859,31]
[392699664,1761834036461,261.96859434,0.00045859,120]
[392699666,1761834036495,500.0,0.00045859,31]
[392699668,1761834036531,500.0,0.00045859,31]
[392699673,1761834036711,500.0,0.00045859,31]
[392699677,1761834036824,500.0,0.00045859,31]
[392699680,1761834036896,500.0,0.00045859,31]
[392699681,1761834036927,160.16688205,0.00045859,31]
[392699686,1761834037300,500.0,0.00045859,31]
[392699691,1761834037445,500.0,0.00045859,31]
[392699832,1761834043640,692.86,0.00043835,120]
[392699847,1761834044242,692.86,0.00044109,120]
[392699853,1761834044456,692.86,0.00044383,120]
[392699864,1761834044877,692.86,0.00044657,120]
[392699871,1761834045109,692.86,0.00044931,120]
[392699878,1761834045352,692.86,0.00045205,120]
[392699885,1761834045592,692.86,0.00045479,120]
[392699892,1761834045828,692.86,0.00045753,120]
[392699899,1761834046064,692.86,0.00046027,120]
[392699901,1761834046308,692.86,0.00046301,120]
[392699908,1761834046548,692.86,0.00046575,120]
[392699915,1761834046803,692.86,0.00046849,120]
[392699922,1761834047058,692.86,0.00047123,120]
[392699932,1761834047418,692.86,0.00047397,120]
[392699939,1761834047653,692.86,0.00047671,120]
[392699946,1761834047894,692.86,0.00047945,120]
[392699952,1761834048128,692.86,0.00048219,120]
[392699962,1761834048514,692.86,0.00048493,120]
[392699970,1761834048756,692.86,0.00048767,120]
[392699976,1761834048994,692.86,0.00049041,120]
[392699984,1761834049245,692.86,0.00049315,120]
[392700063,1761834052808,1000.0,0.00049314,120]
[392702817,1761834452012,5000.0,0.00035658,60]
[392702818,1761834468770,2000.0,0.00018,2]
[392702819,1761834468797,114682.08492844,0.00018,2]
[392702820,1761834469516,-254.00906234,0.000209,2]
[392702821,1761834499479,274.6060565,0.00021,2]
[392702822,1761834507773,358.46698875,0.00022,2]
[392702823,1761834510182,9366.93695475,0.00025,15]
[392702824,1761834510203,10000.01,0.00025,15]
[392702825,1761834510224,9446.55833849,0.00025,15]
[392702826,1761834514498,553.45166151,0.0002061,2]
[392702827,1761834514522,823.54396874,0.0002061,2]
[392702828,1761834517927,244.96778021,0.00023,5]
[392702829,1761834521806,205.4166158,0.00021,2]
[392702830,1761834521927,5337.64340697,0.00023,2]
[392702831,1761834522523,1000.0,0.000235,2]
[392702832,1761834523246,2073.2524599,0.00025205,2]
[392702833,1761834524105,315.18576838,0.00024142,2]
[392702834,1761834524126,1936.84826858,0.00024142,2]
[392702835,1761834525676,8063.16173142,0.00023,10]
[392702836,1761834525697,10000.01,0.00023,10]
[392702837,1761834525717,10000.01,0.00023,10]
[392702838,1761834525737,10000.01,0.00023,10]
[392702839,1761834525757,10000.01,0.00023,10]
[392702840,1761834525778,10000.01,0.00023,10]
[392702841,1761834525798,10000.01,0.00023,10]
[392702842,1761834525818,10000.01,0.00023,10]
[392702843,1761834525838,10000.01,0.00023,10]
[392702844,1761834539097,-2107.72724559,0.00023,10]
[392702845,1761834539139,-469.23313036,0.00023,10]
[392702846,1761834539162,-9061.54373928,0.00023,10]
[392702847,1761834539578,5000.0,0.0002277,5]
[392702848,1761834549045,372.71231137,0.00025205,2]
[392702849,1761834561665,300.0,0.00023,2]
[392702850,1761834566554,2835.90287345,0.00025205,2]
[392702851,1761834566576,2164.09712655,0.00025205,2]
[392702852,1761834572731,300.0,0.00023,2]
[392702853,1761834583285,300.0,0.00023,2]
[392702854,1761834589862,1863.20056208,0.00025205,2]
[392702855,1761834589884,3136.79943792,0.00025205,2]
[392702856,1761834594263,300.0,0.00023,2]
[392702857,1761834611770,100026.0,0.00035658,60]
[392702858,1761834614404,5000.0,0.00025205,2]
[392702880,1761834632073,-196.00401519,0.00027126,2]
[392702882,1761834632082,-200.0,0.00027126,2]
[392702884,1761834632092,-248.54162545,0.00028013,30]
[392702887,1761834632103,-638.84857,0.00028013,30]
[392702889,1761834632114,-112.60980455,0.00028013,30]
[392702891,1761834632123,-285.627214,0.00028341,2]
[392702893,1761834632132,-89.1966944,0.00028411,2]
[392702897,1761834632160,-272.5325842,0.00028411,2]
[392702899,1761834632170,-300.0,0.00029999,2]
[392702901,1761834632179,-1200.0,0.00029999,2]
[392702903,1761834632188,-3335.68523922,0.0003,20]
[392702906,1761834632205,-1559.12554849,0.0003,20]
[392702934,1761834637284,1048.86675324,0.00025205,2]
[392702942,1761834637982,-194.30010956,0.000275,2]
[392702943,1761834637991,-208.57736393,0.000275,2]
[392702944,1761834638001,-208.57736393,0.000278,2]
[392702945,1761834638010,-27.02533,0.0003,20]
[392702946,1761834638022,-4247.00643768,0.0003,20]
[392702947,1761834638034,-776.68808795,0.0003,20]
[392702948,1761834638045,-187.16521719,0.00030196,2]
[392702949,1761834638055,-1003.90200101,0.00030196,2]
[392702950,1761834638096,-408.9327818,0.00030196,2]
[392702953,1761834638106,-165.8097221,0.0003041,25]
[392703015,1761834643362,-673.34190204,0.0003041,25]
[392703028,1761834646154,-160.84837586,0.0003041,25]
[392703029,1761834646163,-21791.63552988,0.00030452,2]
[392703030,1761834646173,-224.00047672,0.0003047,2]
[392703031,1761834646182,-167.833,0.0003047,26]
[392703032,1761834646191,-162.47904137,0.00030557,2]
[392703033,1761834646200,-500.0,0.00030557,2]
[392703034,1761834646212,-200.0,0.00030557,2]
[392703035,1761834646221,-270.37496885,0.00030557,2]
[392703036,1761834646231,-500.0,0.00030557,2]
[392703037,1761834646241,-500.0,0.00030557,2]
[392703038,1761834646250,-500.0,0.00030557,2]
[392703039,1761834646259,-500.0,0.00030557,2]
[392703040,1761834646268,-500.0,0.00030557,2]
[392703041,1761834646278,-500.0,0.00030557,2]
[392703042,1761834646287,-471.48467963,0.00030557,2]
[392703043,1761834646296,-500.0,0.00030557,2]
[392703044,1761834646305,-500.0,0.00030557,2]
[392703045,1761834646315,-475.48182796,0.00030557,2]
[392703046,1761834646324,-500.0,0.00030557,2]
[392703047,1761834646334,-500.0,0.00030557,2]
[392703048,1761834646343,-510.63010186,0.00030557,2]
[392703050,1761834646352,-500.0,0.00030557,2]
[392703051,1761834646363,-500.0,0.00030559,4]
[392703053,1761834646372,-557.77290131,0.00030559,4]
[392703054,1761834646381,-162.832123,0.00030752,4]
[392703055,1761834646390,-300.0,0.000308,30]
[392703056,1761834646399,-300.0,0.000308,30]
[392703057,1761834646408,-300.0,0.000308,30]
[392703058,1761834646417,-300.0,0.000308,30]
[392703059,1761834646426,-300.0,0.000308,30]
[392703060,1761834646435,-300.0,0.000308,30]
[392703061,1761834646443,-300.0,0.000308,30]
[392703062,1761834646452,-300.0,0.000308,30]
[392703063,1761834646462,-300.0,0.000308,30]
[392703064,1761834646471,-300.0,0.000308,30]
[392703065,1761834646480,-300.0,0.000308,30]
[392703066,1761834646489,-300.0,0.000308,30]
[392703067,1761834646499,-300.0,0.000308,30]
[392703068,1761834646508,-300.0,0.000308,30]
[392703069,1761834646517,-300.0,0.000308,30]
[392703070,1761834646525,-508.54096863,0.000308,30]
[392703071,1761834646535,-501.74492321,0.00031018,5]
[392703072,1761834646544,-505.52981895,0.00031018,5]
[392703073,1761834646553,-600.0,0.00031079,30]
[392703074,1761834646563,-162.832123,0.00031181,20]
[392703075,1761834646571,-500.0,0.00031659,5]
[392703076,1761834646580,-500.0,0.00031659,5]
[392703077,1761834646590,-510.00068975,0.00031659,5]
[392703078,1761834646599,-500.0,0.00031659,5]
[392703079,1761834646608,-504.11390506,0.00031659,5]
[392703080,1761834646617,-500.0,0.00031659,5]
[392703081,1761834646626,-500.0,0.00031659,5]
[392703082,1761834646635,-703.71427586,0.00032207,5]
[392703083,1761834646643,-1000.0,0.00032207,5]
[392703084,1761834646652,-1000.0,0.00032207,5]
[392703085,1761834646661,-1000.0,0.00032207,5]
[392703086,1761834646671,-420.0,0.00032332,2]
[392703087,1761834646680,-1200.0,0.0003247,3]
[392703088,1761834646689,-1398.0,0.00032538,3]
[392703089,1761834646698,-1500.0,0.00032755,5]
[392703090,1761834646707,-500.0,0.00032929,4]
[392703091,1761834646717,-1134.06260012,0.00033,7]
[392703092,1761834646727,-150.09193181,0.000332,117]
[392703093,1761834646736,-2000.0,0.00033303,5]
[392703094,1761834646746,-1000.0,0.00033333,7]
[392703095,1761834646755,-2500.0,0.00033851,5]
[392703096,1761834646764,-251.60148481,0.00033997,7]
[392703097,1761834646774,-500.0,0.00033997,7]
[392703098,1761834646783,-500.0,0.00033997,7]
[392703099,1761834646792,-500.0,0.00033997,7]
[392703100,1761834646801,-500.0,0.00033997,7]
[392703101,1761834646810,-500.0,0.00033997,7]
[392703102,1761834646818,-216.77417288,0.00033997,7]
[392703103,1761834646827,-500.0,0.00033997,7]
[392703104,1761834646836,-21313.04785999,0.00033998,2]
[392703105,1761834646849,-720.0,0.00034186,30]
[392703106,1761834646858,-1240.54,0.00034389,10]
[392703107,1761834646867,-3000.0,0.00034399,5]
[392703108,1761834646876,-587.0,0.00034847,2]
[392703109,1761834646887,-3500.0,0.00034946,5]
[392703110,1761834646898,-1033.79,0.0003499,10]
[392703111,1761834646907,-1000.0,0.00035,10]
[392703112,1761834646916,-1000.0,0.00035,10]
[392703113,1761834646925,-4000.0,0.00035494,5]
[392703114,1761834646934,-11707.41942447,0.00035558,2]
[392703115,1761834646943,-500.0,0.00035564,4]
[392703116,1761834646952,-1000.0,0.00035658,60]
[392703117,1761834646963,-194200.68916935,0.00035658,20]
[392703118,1761834646972,-4055.49,0.00035658,7]
[392703119,1761834646981,-1490.23,0.000357,14]
[392703120,1761834646991,-87550.9401901,0.0003599,2]
[392703121,1761834647000,-1620.16389928,0.00036,5]
[392703122,1761834647009,-823.0,0.00037557,2]
[392703123,1761834647018,-864.0,0.00037605,30]
[392703124,1761834647027,-150.0,0.00038992,2]
[392703125,1761834647036,-1000.0,0.00041366,90]
[392703126,1761834647045,-11707.41942445,0.00042451,2]
[392703127,1761834647054,-285.627214,0.00042512,2]
[392703128,1761834647063,-150.0,0.00042537,2]
[392703129,1761834647072,-150.0,0.00043399,30]
[392703130,1761834647083,-500.0,0.00043835,120]
[392703131,1761834647092,-500.0,0.00043835,120]
[392703132,1761834647101,-500.0,0.00043835,120]
[392703133,1761834647111,-500.0,0.00043835,3]
[392703134,1761834647120,-321.61,0.00043835,2]
[392703135,1761834647129,-500.0,0.00043835,120]
[392703136,1761834647139,-500.0,0.00043835,120]
[392703137,1761834647148,-672.71,0.00043835,120]
[392703138,1761834647157,-787.74528965,0.00044,120]
[392703139,1761834647168,-502.75526618,0.00044109,120]
[392703140,1761834647177,-500.0,0.00044109,120]
[392703141,1761834647186,-500.0,0.00044109,3]
[392703142,1761834647196,-500.0,0.00044109,120]
[392703143,1761834647205,-500.0,0.00044109,120]
[392703144,1761834647215,-672.71,0.00044109,120]
[392703145,1761834647224,-500.0,0.00044383,120]
[392703146,1761834647233,-500.0,0.00044383,3]
[392703147,1761834647243,-500.0,0.00044383,120]
[392703148,1761834647252,-500.0,0.00044383,120]
[392703149,1761834647262,-672.71,0.00044383,120]
[392703150,1761834647271,-331.51680023,0.0004455,60]
[392703151,1761834647281,-500.0,0.00044657,120]
[392703152,1761834647290,-500.0,0.00044657,3]
[392703153,1761834647300,-500.0,0.00044657,120]
[392703154,1761834647310,-578.66,0.00044657,120]
[392703155,1761834647319,-672.71,0.00044657,120]
[392703156,1761834647329,-625.272768,0.00044931,120]
[392703157,1761834647338,-204.94075822,0.00044931,3]
[392703158,1761834647348,-324.82162581,0.00044931,120]
[392703159,1761834647357,-672.71,0.00044931,120]
[392703160,1761834647368,-15150.7182744,0.0004498,3]
[392703161,1761834647377,-1000.0,0.00045199,2]
[392703162,1761834647386,-1000.0,0.00045199,2]
[392703163,1761834647395,-1000.0,0.00045199,2]
[392703164,1761834647404,-1000.0,0.00045199,2]
[392703165,1761834647413,-1000.0,0.00045199,2]
[392703166,1761834647423,-672.71,0.00045205,120]
[392703167,1761834647432,-672.71,0.00045479,120]
[392703168,1761834647441,-1000.0,0.00045502,90]
[392703169,1761834647451,-244.0,0.00045502,90]
[392703170,1761834647462,-153.0,0.00045681,30]
[392703171,1761834647471,-153.0,0.00045681,30]
[392703172,1761834647480,-153.0,0.00045681,30]
[392703173,1761834647490,-153.0,0.00045688,30]
[392703174,1761834647499,-153.0,0.0004574,30]
[392703175,1761834647508,-153.0,0.0004574,30]
[392703176,1761834647519,-153.0,0.0004574,30]
[392703177,1761834647528,-206.39951648,0.0004575,2]
[392703178,1761834647538,-672.71,0.00045753,120]
[392703179,1761834647547,-153.0,0.000458,30]
[392703180,1761834647556,-153.0,0.000458,30]
[392703181,1761834647568,-153.0,0.000458,30]
[392703182,1761834647577,-153.0,0.000458,30]
[392703183,1761834647586,-153.0,0.00045806,30]
[392703184,1761834647595,-151.0,0.00045833,2]
[392703185,1761834647605,-151.0,0.00045833,2]
[392703186,1761834647614,-151.0,0.00045833,2]
[392703187,1761834647623,-151.0,0.00045833,2]
[392703188,1761834647636,-151.0,0.00045833,2]
[392703189,1761834647646,-151.0,0.00045833,2]
[392703190,1761834647655,-151.0,0.00045833,2]
[392703191,1761834647665,-151.0,0.00045833,2]
[392703192,1761834647674,-151.0,0.00045833,2]
[392703193,1761834647684,-151.0,0.00045833,2]
[392703194,1761834647693,-151.0,0.00045833,2]
[392703195,1761834647702,-151.0,0.00045833,2]
[392703196,1761834647713,-151.0,0.00045833,2]
[392703197,1761834647723,-151.0,0.00045833,2]
[392703198,1761834647732,-151.0,0.00045833,2]
[392703199,1761834647741,-155.70222287,0.00045833,2]
[392703200,1761834647751,-151.0,0.00045833,2]
[392703201,1761834647760,-151.0,0.00045833,2]
[392703202,1761834647770,-151.0,0.00045833,2]
[392703203,1761834647779,-151.0,0.00045833,2]
[392703204,1761834647790,-151.0,0.00045833,2]
[392703205,1761834647799,-151.0,0.00045833,2]
[392703206,1761834647809,-15150.7182744,0.0004584,4]
[392703207,1761834647818,-153.0,0.00045847,30]
[392703208,1761834647828,-7575.35913718,0.0004585,4]
[392703209,1761834647839,-106055.027921,0.0004585,4]
[392703210,1761834647854,-1000.0,0.0004586,2]
[392703211,1761834647864,-1000.0,0.0004586,2]
[392703212,1761834647874,-1000.0,0.0004586,2]
[392703213,1761834647883,-1000.0,0.0004586,2]
[392703214,1761834647894,-298.73438807,0.0004586,2]
[392703215,1761834647903,-151.0,0.0004586,120]
[392703216,1761834647912,-151.0,0.0004586,120]
[392703217,1761834647925,-301.198644,0.0004586,120]
[392703218,1761834647934,-34409.49554749,0.0004586,2]
[392703219,1761834648280,-6420.3833452,0.0004586,2]
[392703220,1761834648291,-739.60269342,0.0004586,2]
[392703221,1761834652884,514.34380884,0.00025205,2]
[392703222,1761834652908,4485.65619116,0.00025205,2]
[392703223,1761834677157,5000.0,0.00025205,2]
[392703224,1761834701963,514.35380884,0.00025205,2]
[392703225,1761834701985,4485.64619116,0.00025205,2]
[392703274,1761834724577,5000.0,0.00025205,2]
[392703681,1761834747983,514.36380884,0.00025205,2]
[392703682,1761834748012,4485.63619116,0.00025205,2]
[392703741,1761834771055,5000.0,0.00025205,2]
[392703809,1761834794493,514.37380884,0.00025205,2]
[392704436,1761835100229,-5000.0,0.00024357,5]
[392704437,1761835101617,0.01,0.00024357,2]
[392704438,1761835101640,821.342656,0.00024357,2]
[392704439,1761835110052,211.30472275,0.00024357,2]
[392704440,1761835115069,-391.16952231,0.00024603,2]
[392704441,1761835117222,-315.01609457,0.00024603,2]
[392704442,1761835118533,5000.0,0.00024357,2]
[392704443,1761835119483,-402.66684602,0.00024603,2]
[392704444,1761835119506,-48.22426461,0.00024653,2]
[392704445,1761835140964,3967.36262125,0.00024357,2]
[392704446,1761835140986,1032.63737875,0.00024357,2]
[392704447,1761835164475,5000.0,0.00024357,2]
[392704448,1761835187777,1421.72627309,0.00024357,2]
[392704450,1761835240012,654.0,0.00030137,120]
[392704451,1761835331747,2545.64634816,0.00024357,2]
[392704452,1761835331771,2454.35365184,0.00024357,2]
[392704453,1761835346389,-300.0,0.00027384,30]
[392704454,1761835346419,-300.0,0.00027384,30]
[392704455,1761835346447,-300.0,0.00027384,30]
[392704456,1761835346475,-300.0,0.00027384,30]
[392704457,1761835346504,-300.0,0.00027384,30]
[392704458,1761835346532,-300.0,0.00027384,30]
[392704459,1761835346560,-300.0,0.00027384,30]
[392704460,1761835346593,-300.0,0.00027384,30]
[392704461,1761835346621,-300.0,0.00027384,30]
[392704462,1761835346648,-300.0,0.00027384,30]
[392704463,1761835346675,-300.0,0.00027384,30]
[392704464,1761835346702,-300.0,0.00027384,30]
[392704465,1761835346728,-300.0,0.00027384,30]
[392704466,1761835346756,-300.0,0.00027384,30]
[392704467,1761835346784,-300.0,0.00027384,30]
[392704468,1761835346809,-500.0,0.00027384,30]
[392704469,1761835346838,-500.0,0.00027658,30]
[392704470,1761835346867,-600.0,0.00027931,30]
[392704471,1761835346898,-720.0,0.00030724,30]
[392704472,1761835346928,-864.0,0.00033796,30]
[392704473,1761835346959,-285.0,0.00034677,120]
[392704474,1761835346984,-10000.0,0.00035659,60]
[392704475,1761835347007,-312.0,0.00036677,120]
[392704476,1761835347033,-1000.0,0.00037176,30]
[392704477,1761835347058,-339.0,0.00038677,120]
[392704478,1761835347085,-153.0,0.0004064,30]
[392704479,1761835347110,-153.0,0.0004064,30]
[392704480,1761835347136,-153.0,0.00040641,30]
[392704481,1761835347164,-366.0,0.00040677,120]
[392704482,1761835347190,-1000.0,0.00040893,90]
[392704483,1761835347219,-244.0,0.00040893,90]
[392704484,1761835347247,-150.0,0.00042029,30]
[392704485,1761835347271,-393.0,0.00042677,120]
[392704486,1761835347295,-500.0,0.00043835,120]
[392704487,1761835347321,-500.0,0.00044109,120]
[392704488,1761835347347,-500.0,0.00044382,120]
[392704489,1761835347372,-500.0,0.00044383,120]
[392704490,1761835347396,-500.0,0.00044657,120]
[392704491,1761835347421,-420.0,0.00044677,120]
[392704492,1761835347449,-153.0,0.00044909,30]
[392704493,1761835347475,-153.0,0.00044909,30]
[392704494,1761835347501,-500.0,0.00044931,120]
[392704495,1761835347527,-153.0,0.00044969,30]
[392704496,1761835347556,-153.0,0.00044969,30]
[392704497,1761835347588,-1000.0,0.00044983,90]
[392704498,1761835347617,-492.0,0.00044983,90]
[392704499,1761835347644,-153.0,0.00045027,30]
[392704500,1761835347670,-500.0,0.00045205,120]
[392704501,1761835347696,-500.0,0.00045479,120]
[392704502,1761835347721,-160.0,0.00045753,120]
[392704503,1761835347746,-500.0,0.00045753,120]
[392704504,1761835347772,-721.6,0.0004585,30]
[392704505,1761835347800,-150.0,0.0004585,30]
[392704506,1761835347826,-500.0,0.00045858,120]
[392704507,1761835347853,-1000.0,0.00045859,120]
[392704508,1761835347997,-151.0,0.00045859,120]
[392704509,1761835348023,-151.0,0.00045859,120]
[392704510,1761835348048,-414.0,0.00045859,120]
[392704511,1761835348073,-151.0,0.00045859,120]
[392704512,1761835348097,-156.587,0.00045859,120]
[392704513,1761835348120,-305.56121709,0.00045859,120]
[392704514,1761835348149,-1000.0,0.00045859,120]
[392704515,1761835348173,-156.587,0.00045859,120]
[392704516,1761835348198,-429.318,0.00045859,120]
[392704517,1761835348223,-152.40698897,0.00045859,120]
[392704518,1761835348250,-151.0,0.00045859,120]
[392704519,1761835348276,-174.1825246,0.00045859,120]
[392704520,1761835348302,-1000.0,0.00045859,120]
[392704521,1761835348331,-151.0,0.00045859,120]
[392704522,1761835348358,-445.202766,0.00045859,120]
[392704523,1761835348387,-174.1825246,0.00045859,120]
[392704524,1761835348414,-1149.76074216,0.00045859,120]
[392704525,1761835348445,-151.0,0.00045859,120]
[392704526,1761835348472,-461.67526834,0.00045859,120]
[392704527,1761835348497,-250.0,0.00045859,120]
[392704528,1761835348524,-151.0,0.00045859,120]
[392704529,1761835348551,-151.0,0.00045859,120]
[392704530,1761835348577,-250.0,0.00045859,120]
[392704531,1761835348602,-151.0,0.00045859,120]
[392704532,1761835348628,-250.0,0.00045859,120]
[392704533,1761835348655,-156.587,0.00045859,120]
[392704534,1761835348682,-151.0,0.00045859,120]